[Event "NOR-ch Various 2019"]
[Site "Larvik"]
[Date "2019.07.09"]
[Round "4.26"]
[White "Schouten, Mathias Lind"]
[Black "Kvendseth, Thyra"]
[Result "1/2-1/2"]
[ECO "C54"]
[WhiteElo "1961"]
[BlackElo "1967"]
[Annotator "NA"]
[PlyCount "79"]
[EventDate "2019.07.06"]
[EventType "swiss"]
[EventCountry "NOR"]
[SourceTitle "playchess.com"]
[Source "ChessBase"]
[SourceQuality "1"]
[TimeControl "40/5400+30:1800+30"]

1. e4 {[%emt 0:00:00]} e5 {[%emt 0:00:00]} 2. Nf3 {[%emt 0:00:00]} Nc6 {[%emt 0:00:00]} 3. Bc4 {[%emt 0:00:00]} Bc5 {[%emt 0:00:00]} 4. O-O {[%emt 0:00:00]} Nf6 {[%emt 0:00:00]} 5. d3 {[%emt 0:00:00]} O-O {[%emt 0:00:06]} 6. c3 {[%emt 0:00:00]} d6 {[%emt 0:01:15]} 7. a4 {[%emt 0:00:02]} a6 {[%emt 0:00:53]} 8. h3 {[%emt 0:00:04]} Ba7 {[%emt 0:00:09]} 9. Be3 {[%emt 0:02:30]} Ne7 {[%emt 0:04:59]} 10. Nbd2 {[%emt 0:02:26]} Ng6 {[%emt 0:00:28]} 11. Re1 {[%emt 0:02:12]} c6 {[%emt 0:07:26]} 12. Bxa7 {[%emt 0:08:41]} Rxa7 {[%emt 0:00:06]} 13. d4 {[%emt 0:02:02]} exd4 {[%emt 0:03:08]} 14. Nxd4 {[%emt 0:07:49]} d5 {[%emt 0:03:48]} 15. exd5 {[%emt 0:07:35]} Nxd5 {[%emt 0:00:27]} 16. Nf1 {[%emt 0:01:26]} Ndf4 {[%emt 0:06:16]} 17. Nf3 {[%emt 0:09:24]} Qf6 {[%emt 0:09:03]} 18. Qd4 {[%emt 0:00:39]} Qxd4 {[%emt 0:11:39]} 19. Nxd4 {[%emt 0:00:06]} c5 {[%emt 0:03:27]} 20. Nf3 {[%emt 0:01:49]} Bd7 {[%emt 0:01:25]} 21. Ne5 {[%emt 0:01:31]} Nxe5 {[%emt 0:04:52]} 22. Rxe5 {[%emt 0:00:28]} b6 {[%emt 0:00:11]} 23. Re7 {[%emt 0:04:50]} Ng6 {[%emt 0:00:46]} 24. Re3 {[%emt 0:01:31]} Bc6 {[%emt 0:00:28]} 25. b3 {[%emt 0:13:22]} Rd8 {[%emt 0:05:19]} 26. g3 {[%emt 0:09:07]} Raa8 {[%emt 0:07:27]} 27. Be2 {[%emt 0:05:54]} Bd5 {[%emt 0:02:27]} 28. c4 {[%emt 0:04:30]} Bc6 {[%emt 0:00:39]} 29. f4 {[%emt 0:01:03]} Rd7 {[%emt 0:03:37]} 30. Rd1 {[%emt 0:01:29]} Rxd1 {[%emt 0:02:25]} 31. Bxd1 {[%emt 0:00:07]} Rd8 {[%emt 0:00:17]} 32. Be2 {[%emt 0:00:08]} a5 {[%emt 0:00:46]} 33. Rd3 {[%emt 0:01:13]} Rxd3 {[%emt 0:01:42]} 34. Bxd3 {[%emt 0:00:04]} Ne7 {[%emt 0:01:43]} 35. Ne3 {[%emt 0:00:39]} f6 {[%emt 0:00:59]} 36. Nd1 {[%emt 0:06:51]} Kf7 {[%emt 0:00:47]} 37. Nc3 {[%emt 0:00:17]} h6 {[%emt 0:01:51]} 38. Kf2 {[%emt 0:00:38]} Ke6 {[%emt 0:01:48]} 39. Ke3 {[%emt 0:00:05]} Bg2 {[%emt 0:02:28]} 40. h4 {[%emt 0:00:14] Ke5 Ke4+} 1/2-1/2

[Event "NOR-ch Various 2019"]
[Site "Larvik"]
[Date "2019.07.09"]
[Round "4.27"]
[White "Tenold, Andreas"]
[Black "Sekkingstad, Thomas"]
[Result "1-0"]
[ECO "B12"]
[WhiteElo "1813"]
[BlackElo "1718"]
[Annotator "NA"]
[PlyCount "81"]
[EventDate "2019.07.06"]
[EventType "swiss"]
[EventCountry "NOR"]
[SourceTitle "playchess.com"]
[Source "ChessBase"]
[SourceQuality "1"]
[TimeControl "40/5400+30:1800+30"]

1. e4 {[%emt 0:00:00]} c6 {[%emt 0:00:00]} 2. d4 {[%emt 0:00:00]} d5 {[%emt 0:00:00]} 3. e5 {[%emt 0:00:00]} Bf5 {[%emt 0:00:01]} 4. h4 {[%emt 0:00:06]} c5 {[%emt 0:00:50]} 5. c3 {[%emt 0:03:04]} Nc6 {[%emt 0:02:37]} 6. h5 {[%emt 0:04:01]} h6 {[%emt 0:02:25]} 7. g4 {[%emt 0:03:00]} Bh7 {[%emt 0:01:20]} 8. e6 {[%emt 0:01:01]} cxd4 {[%emt 0:01:59]} 9. exf7+ {[%emt 0:00:56]} Kxf7 {[%emt 0:00:10]} 10. cxd4 {[%emt 0:01:14]} e6 {[%emt 0:01:54]} 11. Bd3 {[%emt 0:12:51]} Bxd3 {[%emt 0:04:39]} 12. Qxd3 {[%emt 0:00:10]} Qf6 {[%emt 0:00:17]} 13. Be3 {[%emt 0:03:49]} Bd6 {[%emt 0:04:03]} 14. Ne2 {[%emt 0:05:39]} Qf3 {[%emt 0:05:49]} 15. Rg1 {[%emt 0:01:37]} Bh2 {[%emt 0:00:59]} 16. Nd2 {[%emt 0:00:52]} Qf6 {[%emt 0:05:00]} 17. Rg2 {[%emt 0:06:29]} Bd6 {[%emt 0:00:24]} 18. O-O-O {[%emt 0:14:38]} Nb4 {[%emt 0:00:53]} 19. Qb3 {[%emt 0:00:21]} Ne7 {[%emt 0:01:34]} 20. a3 {[%emt 0:05:36]} Rhc8+ {[%emt 0:00:41]} 21. Kb1 {[%emt 0:00:13]} Nbc6 {[%emt 0:00:58]} 22. f4 {[%emt 0:02:19]} Na5 {[%emt 0:02:24]} 23. Qd3 {[%emt 0:01:09]} Nc4 {[%emt 0:00:21]} 24. Nxc4 {[%emt 0:00:35]} Rxc4 {[%emt 0:00:08]} 25. Ng3 {[%emt 0:02:42]} Kg8 {[%emt 0:01:03]} 26. Rf1 {[%emt 0:00:38]} Qh4 {[%emt 0:01:19]} 27. Qe2 {[%emt 0:04:41]} Rf8 {[%emt 0:03:28]} 28. Rh2 {[%emt 0:03:54]} Qf6 {[%emt 0:02:10]} 29. Rhh1 {[%emt 0:06:43]} b5 {[%emt 0:01:10]} 30. g5 {[%emt 0:01:12]} Qf7 {[%emt 0:00:30]} 31. Rhg1 {[%emt 0:03:07]} Kh8 {[%emt 0:00:41]} 32. f5 {[%emt 0:03:32]} exf5 {[%emt 0:01:48]} 33. gxh6 {[%emt 0:00:48]} gxh6 {[%emt 0:01:17]} 34. Bxh6 {[%emt 0:00:51]} Rg8 {[%emt 0:01:00]} 35. Bf4 {[%emt 0:00:15]} Bxf4 {[%emt 0:00:53]} 36. Rxf4 {[%emt 0:00:01]} Nc6 {[%emt 0:01:31]} 37. Rxf5 {[%emt 0:01:25]} Rxg3 {[%emt 0:00:47]} 38. Rxf7 {[%emt 0:00:53]} Rxg1+ {[%emt 0:00:07]} 39. Ka2 {[%emt 0:00:03]} Rcc1 {[%emt 0:01:26]} 40. Qe8+ {[%emt 0:00:42]} Rg8 {[%emt 0:00:16]} 41. Qe6 {[%emt 0:30:11]} 1-0

[Event "NOR-ch Various 2019"]
[Site "Larvik"]
[Date "2019.07.09"]
[Round "4.28"]
[White "Andersen, Lars Even"]
[Black "Hobber, Anders"]
[Result "1/2-1/2"]
[ECO "D02"]
[WhiteElo "2314"]
[BlackElo "2294"]
[Annotator "NA"]
[PlyCount "28"]
[EventDate "2019.07.06"]
[EventType "swiss"]
[EventCountry "NOR"]
[SourceTitle "playchess.com"]
[Source "ChessBase"]
[SourceQuality "1"]
[TimeControl "40/5400+30:1800+30"]

1. Nf3 {[%emt 0:07:13]} d5 {[%emt 0:01:37]} 2. g3 {[%emt 0:03:15]} c6 {[%emt 0:02:44]} 3. Bg2 {[%emt 0:00:33]} Bg4 {[%emt 0:00:54]} 4. d4 {[%emt 0:04:39]} Nf6 {[%emt 0:02:44]} 5. Nbd2 {[%emt 0:04:41]} e6 {[%emt 0:02:47]} 6. h3 {[%emt 0:08:43]} Bh5 {[%emt 0:03:06]} 7. Ne5 {[%emt 0:04:36]} Nbd7 {[%emt 0:04:12]} 8. Ndf3 {[%emt 0:01:14]} Nxe5 {[%emt 0:04:46]} 9. Nxe5 {[%emt 0:01:01]} Nd7 {[%emt 0:01:34]} 10. Bf4 {[%emt 0:12:35]} Be7 {[%emt 0:11:21]} 11. Qd3 {[%emt 0:08:09]} Nxe5 {[%emt 0:02:32]} 12. Bxe5 {[%emt 0:00:17]} O-O {[%emt 0:00:47]} 13. O-O {[%emt 0:01:04]} Bg6 {[%emt 0:01:42]} 14. Qb3 {[%emt 0:02:18]} Qb6 {[%emt 0:01:07]} 1/2-1/2

[Event "NOR-ch Various 2019"]
[Site "Larvik"]
[Date "2019.07.09"]
[Round "4.29"]
[White "Lund, Gunnar"]
[Black "Brodtkorb, Lars Johan"]
[Result "1/2-1/2"]
[ECO "A13"]
[WhiteElo "2285"]
[BlackElo "2077"]
[Annotator "NA"]
[PlyCount "136"]
[EventDate "2019.07.06"]
[EventType "swiss"]
[EventCountry "NOR"]
[SourceTitle "playchess.com"]
[Source "ChessBase"]
[SourceQuality "1"]
[TimeControl "40/5400+30:1800+30"]

1. b3 {[%emt 0:00:00]} d5 {[%emt 0:01:17]} 2. Bb2 {[%emt 0:00:00]} Nf6 {[%emt 0:00:09]} 3. Nf3 {[%emt 0:00:03]} e6 {[%emt 0:00:33]} 4. e3 {[%emt 0:02:00]} Be7 {[%emt 0:00:12]} 5. Be2 {[%emt 0:00:35]} O-O {[%emt 0:00:40]} 6. O-O {[%emt 0:06:45]} b6 {[%emt 0:04:09]} 7. c4 {[%emt 0:00:41]} dxc4 {[%emt 0:04:51]} 8. Bxc4 {[%emt 0:03:27]} Bb7 {[%emt 0:05:52]} 9. Nc3 {[%emt 0:02:42]} c5 {[%emt 0:01:42]} 10. d4 {[%emt 0:06:34]} Nc6 {[%emt 0:02:11]} 11. Qe2 {[%emt 0:07:21]} cxd4 {[%emt 0:09:39]} 12. Rfd1 {[%emt 0:03:25]} Qc8 {[%emt 0:12:59]} 13. exd4 {[%emt 0:03:30]} Na5 {[%emt 0:05:05]} 14. Bd3 {[%emt 0:07:13]} Qd8 {[%emt 0:00:49]} 15. Ne5 {[%emt 0:06:19]} Nc6 {[%emt 0:09:40]} 16. Nxc6 {[%emt 0:41:23]} Bxc6 {[%emt 0:00:06]} 17. Bb5 {[%emt 0:05:11]} Bb7 {[%emt 0:04:50]} 18. Ba6 {[%emt 0:00:54]} Qd7 {[%emt 0:01:16]} 19. Bb5 {[%emt 0:00:46]} Qd6 {[%emt 0:00:57]} 20. Qe5 {[%emt 0:00:38]} Rfd8 {[%emt 0:02:20]} 21. Qxd6 {[%emt 0:00:06]} Bxd6 {[%emt 0:00:20]} 22. Ne2 {[%emt 0:00:30]} Rac8 {[%emt 0:02:03]} 23. Rac1 {[%emt 0:00:12]} Nd5 {[%emt 0:01:41]} 24. Rxc8 {[%emt 0:00:14]} Rxc8 {[%emt 0:00:18]} 25. Rc1 {[%emt 0:00:09]} Rxc1+ {[%emt 0:11:35]} 26. Bxc1 {[%emt 0:00:18]} Be7 {[%emt 0:00:43]} 27. Bd2 {[%emt 0:00:09]} Bf6 {[%emt 0:00:36]} 28. Bc4 {[%emt 0:00:47]} Kf8 {[%emt 0:01:36]} 29. Bxd5 {[%emt 0:01:18]} Bxd5 {[%emt 0:00:08]} 30. Bf4 {[%emt 0:00:10]} Be4 {[%emt 0:08:09]} 31. Bd6+ {[%emt 0:01:06]} Kg8 {[%emt 0:03:54]} 32. Be5 {[%emt 0:00:17]} Bg5 {[%emt 0:00:55]} 33. Bb8 {[%emt 0:00:43]} a6 {[%emt 0:00:18]} 34. Nc3 {[%emt 0:00:22]} Bc6 {[%emt 0:00:19]} 35. Na4 {[%emt 0:00:35]} Bd8 {[%emt 0:00:51]} 36. Nc3 {[%emt 0:00:45]} Kf8 {[%emt 0:00:26]} 37. f3 {[%emt 0:00:12]} Ke7 {[%emt 0:00:35]} 38. Kf2 {[%emt 0:00:01]} Kd7 {[%emt 0:00:34]} 39. Ke3 {[%emt 0:00:13]} Be7 {[%emt 0:00:34]} 40. Kd3 {[%emt 0:00:43]} Bb7 {[%emt 0:02:45]} 41. Be5 {[%emt 0:30:48]} f6 {[%emt 0:30:14]} 42. Bb8 {[%emt 0:01:17]} Bc6 {[%emt 0:01:26]} 43. Bf4 {[%emt 0:00:00]} Bd8 {[%emt 0:00:00]} 44. Ke3 {[%emt 0:00:00]} g5 {[%emt 0:00:00]} 45. Bg3 {[%emt 0:00:00]} f5 {[%emt 0:00:00]} 46. Be5 {[%emt 0:00:00]} b5 {[%emt 0:00:00]} 47. g3 {[%emt 0:00:00]} a5 {[%emt 0:00:00]} 48. a4 {[%emt 0:00:00]} b4 {[%emt 0:00:00]} 49. Nb1 {[%emt 0:00:00]} g4 {[%emt 0:00:00]} 50. f4 {[%emt 0:00:00]} Be4 {[%emt 0:00:00]} 51. Nd2 {[%emt 0:00:00]} Bc2 {[%emt 0:00:00]} 52. Bg7 {[%emt 0:00:00]} Kc6 {[%emt 0:00:00]} 53. Bh8 {[%emt 0:00:00]} Kd5 {[%emt 0:00:00]} 54. Bg7 {[%emt 0:00:00]} Be7 {[%emt 0:00:00]} 55. Bh8 {[%emt 0:00:00]} h5 {[%emt 0:00:00]} 56. Bg7 {[%emt 0:00:00]} h4 {[%emt 0:00:00]} 57. Bh8 {[%emt 0:00:00]} h3 {[%emt 0:00:00]} 58. Bg7 {[%emt 0:00:00]} Bd1 {[%emt 0:00:01]} 59. Kd3 {[%emt 0:00:00]} Bd8 {[%emt 0:00:56]} 60. Ke3 {[%emt 0:00:00]} Bc7 {[%emt 0:01:40]} 61. Bf6 {[%emt 0:00:00]} Bc2 {[%emt 0:02:12]} 62. Bg7 {[%emt 0:00:00]} Bb8 {[%emt 0:00:44]} 63. Bf6 {[%emt 0:00:00]} Bd6 {[%emt 0:00:07]} 64. Bg7 {[%emt 0:00:00]} Bc7 {[%emt 0:00:06]} 65. Bf6 {[%emt 0:00:00]} Bd1 {[%emt 0:01:06]} 66. Bg7 {[%emt 0:00:00]} Bd8 {[%emt 0:01:47]} 67. Bh8 {[%emt 0:00:00]} Bh4 {[%emt 0:03:20]} 68. Kf2 {[%emt 0:00:00]} Be7 {[%emt 0:00:12]} 1/2-1/2

[Event "NOR-ch Various 2019"]
[Site "Larvik"]
[Date "2019.07.09"]
[Round "4.30"]
[White "Hole, Oystein"]
[Black "Gulbrandsen, Tor"]
[Result "1/2-1/2"]
[ECO "D52"]
[WhiteElo "2293"]
[BlackElo "2120"]
[Annotator "NA"]
[PlyCount "38"]
[EventDate "2019.07.06"]
[EventType "swiss"]
[EventCountry "NOR"]
[SourceTitle "playchess.com"]
[Source "ChessBase"]
[SourceQuality "1"]
[TimeControl "40/5400+30:1800+30"]

1. Nf3 {[%emt 0:00:00]} d5 {[%emt 0:07:46]} 2. d4 {[%emt 0:00:00]} Nf6 {[%emt 0:00:17]} 3. c4 {[%emt 0:00:00]} e6 {[%emt 0:00:40]} 4. Nc3 {[%emt 0:00:02]} c6 {[%emt 0:00:37]} 5. Bg5 {[%emt 0:00:21]} Nbd7 {[%emt 0:00:45]} 6. e3 {[%emt 0:00:19]} Qa5 {[%emt 0:00:51]} 7. cxd5 {[%emt 0:02:01]} exd5 {[%emt 0:05:19]} 8. Nd2 {[%emt 0:11:20]} Bb4 {[%emt 0:02:36]} 9. Qc2 {[%emt 0:03:51]} O-O {[%emt 0:02:47]} 10. Bd3 {[%emt 0:01:46]} h6 {[%emt 0:12:09]} 11. Bh4 {[%emt 0:01:34]} Re8 {[%emt 0:03:35]} 12. O-O {[%emt 0:00:30]} Be7 {[%emt 0:05:35]} 13. a3 {[%emt 0:04:09]} Qd8 {[%emt 0:06:29]} 14. Bg3 {[%emt 0:03:45]} Nf8 {[%emt 0:03:24]} 15. b4 {[%emt 0:04:43]} b6 {[%emt 0:09:26]} 16. h3 {[%emt 0:19:02]} Bd6 {[%emt 0:03:12]} 17. Bxd6 {[%emt 0:01:57]} Qxd6 {[%emt 0:00:11]} 18. Nf3 {[%emt 0:01:34]} N8d7 {[%emt 0:04:34]} 19. Rfd1 {[%emt 0:01:33]} Bb7 {[%emt 0:01:20]} 1/2-1/2

[Event "NOR-ch Various 2019"]
[Site "Larvik"]
[Date "2019.07.09"]
[Round "4.31"]
[White "Abdrlauf, Elham"]
[Black "Sorgjerd, Jan"]
[Result "1/2-1/2"]
[ECO "B55"]
[WhiteElo "2235"]
[BlackElo "2033"]
[Annotator "NA"]
[PlyCount "216"]
[EventDate "2019.07.06"]
[EventType "swiss"]
[EventCountry "NOR"]
[SourceTitle "playchess.com"]
[Source "ChessBase"]
[SourceQuality "1"]
[TimeControl "40/5400+30:1800+30"]

1. e4 {[%emt 0:01:37]} c5 {[%emt 0:00:13]} 2. Nf3 {[%emt 0:00:25]} d6 {[%emt 0:00:10]} 3. d4 {[%emt 0:00:08]} cxd4 {[%emt 0:00:05]} 4. Nxd4 {[%emt 0:00:03]} Nf6 {[%emt 0:00:09]} 5. f3 {[%emt 0:00:04]} e6 {[%emt 0:02:23]} 6. c4 {[%emt 0:01:57]} Be7 {[%emt 0:00:34]} 7. Nc3 {[%emt 0:00:23]} Nc6 {[%emt 0:00:59]} 8. Be3 {[%emt 0:00:12]} O-O {[%emt 0:02:20]} 9. Be2 {[%emt 0:01:00]} Bd7 {[%emt 0:02:38]} 10. O-O {[%emt 0:01:10]} b6 {[%emt 0:15:14]} 11. Qd2 {[%emt 0:01:02]} Rc8 {[%emt 0:07:57]} 12. Rfd1 {[%emt 0:00:35]} Ne5 {[%emt 0:03:40]} 13. b3 {[%emt 0:00:27]} a6 {[%emt 0:01:00]} 14. Rac1 {[%emt 0:05:42]} Qc7 {[%emt 0:03:12]} 15. g4 {[%emt 0:13:52]} Rfd8 {[%emt 0:05:09]} 16. g5 {[%emt 0:06:00]} Ne8 {[%emt 0:00:15]} 17. f4 {[%emt 0:00:20]} Ng6 {[%emt 0:00:10]} 18. Qe1 {[%emt 0:00:36]} Qb8 {[%emt 0:07:47]} 19. Qf2 {[%emt 0:06:16]} Nc7 {[%emt 0:02:45]} 20. h4 {[%emt 0:05:00]} b5 {[%emt 0:04:18]} 21. h5 {[%emt 0:00:22]} Nh8 {[%emt 0:03:20]} 22. f5 {[%emt 0:02:58]} b4 {[%emt 0:02:47]} 23. Nb1 {[%emt 0:02:40]} d5 {[%emt 0:03:57]} 24. exd5 {[%emt 0:01:15]} exd5 {[%emt 0:00:57]} 25. f6 {[%emt 0:00:34]} Bf8 {[%emt 0:00:58]} 26. Nd2 {[%emt 0:04:57]} Re8 {[%emt 0:01:07]} 27. Nf1 {[%emt 0:04:30]} dxc4 {[%emt 0:06:36]} 28. Bxc4 {[%emt 0:01:15]} Be6 {[%emt 0:03:57]} 29. Nxe6 {[%emt 0:09:11]} Nxe6 {[%emt 0:00:15]} 30. Rd5 {[%emt 0:01:54]} Rcd8 {[%emt 0:06:17]} 31. Rcd1 {[%emt 0:00:29]} Rxd5 {[%emt 0:01:45]} 32. Rxd5 {[%emt 0:00:10]} Rd8 {[%emt 0:00:52]} 33. Rf5 {[%emt 0:06:18]} Qd6 {[%emt 0:00:20]} 34. Ng3 {[%emt 0:01:47]} Qd1+ {[%emt 0:02:00]} 35. Kg2 {[%emt 0:00:05]} Rd6 {[%emt 0:01:39]} 36. Re5 {[%emt 0:07:24]} Qa1 {[%emt 0:05:50]} 37. Ra5 {[%emt 0:04:14]} Nd4 {[%emt 0:04:08]} 38. Rxa6 {[%emt 0:02:29]} Rxa6 {[%emt 0:00:15]} 39. Bxa6 {[%emt 0:00:04]} Nxb3 {[%emt 0:00:32]} 40. Nf5 {[%emt 0:01:47]} gxf6 {[%emt 0:00:48]} 41. Nh6+ {[%emt 0:31:36]} Bxh6 {[%emt 0:04:18]} 42. gxh6 {[%emt 0:00:00]} Na5 {[%emt 0:07:03]} 43. Qg3+ {[%emt 0:00:00]} Ng6 {[%emt 0:00:08]} 44. hxg6 {[%emt 0:00:00]} Qxa2+ {[%emt 0:00:16]} 45. Kg1 {[%emt 0:00:00]} Qb1+ {[%emt 0:01:13]} 46. Kh2 {[%emt 0:00:00]} Qc2+ {[%emt 0:00:24]} 47. Bf2 {[%emt 0:00:00]} hxg6 {[%emt 0:01:04]} 48. Bd3 {[%emt 0:00:00]} Qd2 {[%emt 0:00:21]} 49. Bxg6 {[%emt 0:00:00]} Qxh6+ {[%emt 0:01:36]} 50. Bh5+ {[%emt 0:00:00]} Kh7 {[%emt 0:02:14]} 51. Qd3+ {[%emt 0:00:00]} Kg7 {[%emt 0:00:23]} 52. Qf3 {[%emt 0:00:00]} Nc4 {[%emt 0:03:48]} 53. Bg3 {[%emt 0:00:00]} Nd2 {[%emt 0:01:29]} 54. Qg4+ {[%emt 0:00:00]} Qg5 {[%emt 0:00:44]} 55. Be1 {[%emt 0:00:00]} Qxg4 {[%emt 0:01:38]} 56. Bxg4 {[%emt 0:00:00]} Nf1+ {[%emt 0:00:49]} 57. Kg1 {[%emt 0:00:00]} Ne3 {[%emt 0:00:08]} 58. Be2 {[%emt 0:03:01]} Nd5 {[%emt 0:03:58]} 59. Bc4 {[%emt 0:00:00]} Nc3 {[%emt 0:00:30]} 60. Kf2 {[%emt 0:00:00]} Ne4+ {[%emt 0:00:36]} 61. Ke3 {[%emt 0:00:00]} Ng5 {[%emt 0:00:11]} 62. Bxb4 {[%emt 0:00:00]} Ne6 {[%emt 0:00:07]} 63. Bd3 {[%emt 0:00:00]} Nf8 {[%emt 0:00:19]} 64. Bc3 {[%emt 0:00:00]} Ng6 {[%emt 0:00:15]} 65. Ke4 {[%emt 0:00:00]} Ne5 {[%emt 0:00:15]} 66. Bc2 {[%emt 0:00:00]} Ng6 {[%emt 0:00:21]} 67. Bb1 {[%emt 0:00:00]} Ne7 {[%emt 0:00:15]} 68. Ba5 {[%emt 0:00:00]} Ng6 {[%emt 0:00:15]} 69. Bd8 {[%emt 0:00:00]} Nh4 {[%emt 0:01:43]} 70. Kf4 {[%emt 0:00:00]} Ng6+ {[%emt 0:00:18]} 71. Kg4 {[%emt 0:00:00]} Nf8 {[%emt 0:01:35]} 72. Kf5 {[%emt 0:00:00]} Nh7 {[%emt 0:00:24]} 73. Be7 {[%emt 0:00:00]} Kh6 {[%emt 0:00:29]} 74. Ba2 {[%emt 0:00:00]} Kg7 {[%emt 0:00:12]} 75. Ba3 {[%emt 0:00:00]} Nf8 {[%emt 0:01:12]} 76. Bb2 {[%emt 0:00:00]} Nh7 {[%emt 0:00:07]} 77. Bd4 {[%emt 0:00:00]} Kg8 {[%emt 0:00:26]} 78. Kg4 {[%emt 0:00:00]} Kg7 {[%emt 0:00:13]} 79. Kh5 {[%emt 0:00:00]} Ng5 {[%emt 0:00:19]} 80. Be3 {[%emt 0:00:00]} Kh7 {[%emt 0:00:54]} 81. Bb1+ {[%emt 0:00:00]} Kg7 {[%emt 0:00:09]} 82. Bc1 {[%emt 0:00:00]} Ne6 {[%emt 0:02:00]} 83. Bh6+ {[%emt 0:00:00]} Kg8 {[%emt 0:00:11]} 84. Kg4 {[%emt 0:00:00]} Ng7 {[%emt 0:00:33]} 85. Kf4 {[%emt 0:00:00]} Kh8 {[%emt 0:00:51]} 86. Ke3 {[%emt 0:00:00]} f5 {[%emt 0:01:27]} 87. Kd4 {[%emt 0:00:00]} Kh7 {[%emt 0:00:09]} 88. Bc1 {[%emt 0:00:00]} Kg6 {[%emt 0:00:52]} 89. Kd5 {[%emt 0:00:00]} Nh5 {[%emt 0:01:06]} 90. Ke5 {[%emt 0:00:00]} f6+ {[%emt 0:00:33]} 91. Ke6 {[%emt 0:00:00]} Ng7+ {[%emt 0:00:10]} 92. Ke7 {[%emt 0:00:00]} Nh5 {[%emt 0:00:18]} 93. Ba2 {[%emt 0:00:00]} f4 {[%emt 0:00:54]} 94. Ke6 {[%emt 0:00:00]} Kg5 {[%emt 0:00:54]} 95. Kd5 {[%emt 0:00:00]} Kg4 {[%emt 0:01:04]} 96. Kd4 {[%emt 0:00:00]} Ng3 {[%emt 0:00:48]} 97. Bc4 {[%emt 0:00:00]} f5 {[%emt 0:00:53]} 98. Ba3 {[%emt 0:00:00]} f3 {[%emt 0:01:18]} 99. Ke3 {[%emt 0:00:00]} f4+ {[%emt 0:00:21]} 100. Kf2 {[%emt 0:00:00]} Ne4+ {[%emt 0:00:12]} 101. Kg1 {[%emt 0:00:00]} f2+ {[%emt 0:00:57]} 102. Kg2 {[%emt 0:01:17]} f3+ {[%emt 0:00:14]} 103. Kf1 {[%emt 0:00:45]} Nd2+ {[%emt 0:00:12]} 104. Kxf2 {[%emt 0:00:04]} Nxc4 {[%emt 0:00:10]} 105. Bc5 {[%emt 0:00:03]} Nd2 {[%emt 0:00:26]} 106. Ba7 {[%emt 0:00:14]} Ne4+ {[%emt 0:00:04]} 107. Kf1 {[%emt 0:00:21]} f2 {[%emt 0:00:03]} 108. Bxf2 {[%emt 0:00:11]} Nxf2 {[%emt 0:00:01]} 1/2-1/2

[Event "NOR-ch Various 2019"]
[Site "Larvik"]
[Date "2019.07.09"]
[Round "4.32"]
[White "Kristiansen, Willy M"]
[Black "Moen, Ole Christian"]
[Result "1/2-1/2"]
[ECO "E69"]
[WhiteElo "2118"]
[BlackElo "2234"]
[Annotator "NA"]
[PlyCount "111"]
[EventDate "2019.07.06"]
[EventType "swiss"]
[EventCountry "NOR"]
[SourceTitle "playchess.com"]
[Source "ChessBase"]
[SourceQuality "1"]
[TimeControl "40/5400+30:1800+30"]

1. d4 {[%emt 0:01:53]} d6 {[%emt 0:00:31]} 2. Nf3 {[%emt 0:00:12]} Nf6 {[%emt 0:00:14]} 3. c4 {[%emt 0:00:31]} Nbd7 {[%emt 0:00:04]} 4. Nc3 {[%emt 0:00:17]} e5 {[%emt 0:00:06]} 5. g3 {[%emt 0:00:30]} c6 {[%emt 0:00:59]} 6. Bg2 {[%emt 0:00:20]} g6 {[%emt 0:01:44]} 7. O-O {[%emt 0:00:46]} Bg7 {[%emt 0:00:03]} 8. e4 {[%emt 0:00:55]} O-O {[%emt 0:00:09]} 9. h3 {[%emt 0:05:36]} a6 {[%emt 0:00:45]} 10. a4 {[%emt 0:01:58]} a5 11. Be3 {[%emt 0:00:00]} exd4 {[%emt 0:06:02]} 12. Nxd4 {[%emt 0:00:00]} Re8 {[%emt 0:00:05]} 13. Qc2 {[%emt 0:08:23]} Nc5 {[%emt 0:08:00]} 14. Rfe1 {[%emt 0:03:10]} Qe7 {[%emt 0:00:19]} 15. f3 {[%emt 0:05:57]} Be6 {[%emt 0:10:06]} 16. Nxe6 {[%emt 0:05:48]} Qxe6 {[%emt 0:06:53]} 17. b3 Nh5 {[%emt 0:00:00]} 18. g4 {[%emt 0:05:49]} Qe5 {[%emt 0:01:58]} 19. Ne2 {[%emt 0:01:03]} Ng3 {[%emt 0:01:04]} 20. Rad1 {[%emt 0:06:59]} Nxe2+ {[%emt 0:08:22]} 21. Rxe2 {[%emt 0:00:21]} Ne6 {[%emt 0:00:27]} 22. Qd2 {[%emt 0:01:43]} g5 {[%emt 0:01:53]} 23. Ree1 {[%emt 0:02:38]} Bf8 {[%emt 0:09:21]} 24. Bd4 {[%emt 0:03:51]} Nxd4 {[%emt 0:00:09]} 25. Qxd4 {[%emt 0:00:18]} Qxd4+ {[%emt 0:00:22]} 26. Rxd4 {[%emt 0:00:10]} d5 {[%emt 0:00:02]} 27. Kf1 {[%emt 0:03:24]} Bb4 {[%emt 0:01:42]} 28. Rc1 {[%emt 0:02:03]} Bc5 {[%emt 0:02:40]} 29. Rd3 {[%emt 0:00:17]} d4 {[%emt 0:00:20]} 30. Ke2 {[%emt 0:01:32]} Rad8 {[%emt 0:01:23]} 31. h4 {[%emt 0:01:10]} h6 {[%emt 0:00:23]} 32. f4 {[%emt 0:01:01]} gxf4 {[%emt 0:02:15]} 33. Kf3 {[%emt 0:09:16]} Rd6 {[%emt 0:06:47]} 34. Bh3 {[%emt 0:04:34]} Rde6 {[%emt 0:03:55]} 35. Re1 {[%emt 0:00:36]} Re5 {[%emt 0:03:41]} 36. Kxf4 {[%emt 0:02:11]} Bd6 {[%emt 0:00:07]} 37. Kf3 {[%emt 0:01:01]} c5 {[%emt 0:00:05]} 38. Bg2 {[%emt 0:02:08]} R8e6 {[%emt 0:03:35]} 39. Kf2 {[%emt 0:07:00]} Rg6 {[%emt 0:02:38]} 40. Bf3 {[%emt 0:01:31]} Be7 {[%emt 0:04:37]} 41. Rh1 {[%emt 0:31:50]} Rf6 {[%emt 0:01:55]} 42. Kg2 {[%emt 0:01:51]} Kg7 {[%emt 0:28:16]} 43. Kg3 {[%emt 0:00:48]} Bd6 {[%emt 0:00:30]} 44. Kg2 {[%emt 0:02:17]} Rf4 45. Kg3 {[%emt 0:00:06]} Re6 {[%emt 0:03:32]} 46. Kg2 {[%emt 0:05:18]} Be5 {[%emt 0:02:55]} 47. Re1 {[%emt 0:01:14]} Re8 {[%emt 0:00:00]} 48. Rh1 {[%emt 0:00:00]} Kf6 {[%emt 0:00:00]} 49. Re1 {[%emt 0:00:00]} Ke7 {[%emt 0:00:00]} 50. Kh3 {[%emt 0:00:00]} Rg8 {[%emt 0:00:54]} 51. Rg1 {[%emt 0:00:00]} Kd6 {[%emt 0:00:00]} 52. Re1 {[%emt 0:03:02]} h5 53. g5 {[%emt 0:00:00]} f6 {[%emt 0:00:00]} 54. Rg1 {[%emt 0:00:00]} fxg5 {[%emt 0:00:00]} 55. Rxg5 {[%emt 0:00:00]} Rxg5 {[%emt 0:00:00]} 56. hxg5 {[%emt 0:00:00]} 1/2-1/2